Cogmind - Beta 13 @@@ ROGUE MODE // 2024.04.30 @ 01:16:22 Player: Some Pennies Result: Destroyed by Autobeam Turret with Autobeam Performance ------------- Evolutions (0) 0 Regions Visited (2) 400 Robots Destroyed (34) 170 Value Destroyed (558) 558 Prototype IDs (0) 0 Alien Tech Used (0) 0 Bonus (0) 0 TOTAL SCORE: 1128 Bonus ------- None Cogmind --------- Core Integrity 0/250 Matter 295/300 Energy 250/250 System Corruption 1% Temperature Cool (6) Movement Treading (480) Ox4 Location -10/Subcaves Parts ------- > --- POWER (1) -------- Ion Engine > --- PROPULSION (2) --- Light Treads > --- UTILITY (2) ------ Huge Storage Unit > --- WEAPON (2) ------- (None) > --- INVENTORY (25) --- Light Treads Light Treads Light Treads Heat Sink Structural Scanner Transport Network Coupler Beam Rifle Assault Rifle Light Assault Rifle Light Assault Rifle Light Assault Rifle Barrage Gun Datajack Mining Laser Makeshift Sword Peak State ------------ > --- POWER ------------ Ion Engine > --- PROPULSION ------- Light Treads Light Treads > --- UTILITY ---------- Small Storage Unit Improved Terrain Scanner > --- WEAPON ----------- Assault Rifle Assault Rifle > --- INVENTORY -------- Light Ion Engine Light Ion Engine EM Pulse Gun Mining Laser [Rating: 9] Favorites ----------- Power Ion Engine Engine Ion Engine Propulsion Light Treads Treads Light Treads Utility Structural Scanner Device Structural Scanner Storage Huge Storage Unit Weapon Light Cannon Ballistic Gun Assault Rifle Ballistic Cannon Light Cannon Special Weapon Mining Laser Build | -11 -10 -10 ------- Run | Yrd Mat Sub Slots Evolved . | . . . Power . | . . . Propulsion . | . . . Utility . | . . . Weapon . | . . . Parts Attached 28 | 7 14 7 Power 4 | 1 2 1 Engine 4 | 1 2 1 Core . | . . . Reactor . | . . . Propulsion 6 | 2 1 3 Treads 6 | 2 1 3 Leg . | . . . Wheel . | . . . Hover . | . . . Flight . | . . . Utility 8 | 2 5 1 Device 4 | 1 2 1 Storage 4 | 1 3 . Processor . | . . . Hackware . | . . . Protection . | . . . Artifact . | . . . Weapon 10 | 2 6 2 Energy Gun . | . . . Energy Cannon . | . . . Ballistic Gun 6 | 2 4 . Ballistic Cannon 3 | . 2 1 Launcher . | . . . Special Weapon 1 | . . 1 Impact Weapon . | . . . Slashing Weapon . | . . . Piercing Weapon . | . . . Special Melee Weapon . | . . . Unidentified Prototypes . | . . . Parts Lost 8 | . . 8 Power 1 | . . 1 Propulsion 4 | . . 4 Utility 1 | . . 1 Weapon 2 | . . 2 Highest Loss Streak 4 | . . 4 To Critical Strikes . | . . . Average Slot Usage (%) 97 | . 99 94 Engine 13 | . 14 13 Treads 27 | . 28 27 Device 13 | . 13 13 Storage 14 | . 14 14 Ballistic Gun 14 | . 27 . Ballistic Cannon 11 | . . 23 Naked Turns . | . . . Heaviest Build 92 | 15 92 92 Greatest Support 40 | 40 40 40 Greatest Overweight (x) 4 | 2 2 4 Average Overweight (x) . | . . 2 Largest Inventory Capacity 25 | 8 25 25 Average Capacity 18 | 7 13 25 Most Carried 19 | 5 15 19 Average Carried 13 | 3 11 17 Final Capacity 25 | 8 25 25 Final Carried 15 | 5 15 15 Class Distribution -------------------- 100% | Mutant Dominant Class ---------------- Mutant | -10/Materials Mutant | -10/Subcaves Resources | -11 -10 -10 ----------- Run | Yrd Mat Sub Matter Collected 1008 | 366 345 297 Remotely . | . . . Salvage Created 730 | 141 494 95 Parts 68 | 12 46 10 Haulers Intercepted 2 | . 2 . Recyclers Shooed . | . . . Parts Field Recycled . | . . . Retrieved Matter . | . . . Parts Self-Destructed 10 | . . 10 Prevented . | . . . Kills | -11 -10 -10 ------- Run | Yrd Mat Sub Combat Hostiles Destroyed 22 | . 14 8 Guns 14 | . 14 . Cannons 8 | . . 8 Classes Destroyed 11 | 3 6 2 Worker 1 | 1 . . Builder 1 | . 1 . Tunneler 4 | 4 . . Hauler 2 | . 2 . Recycler 1 | 1 . . Operator 1 | . 1 . Watcher 2 | . 2 . Swarmer 13 | . 9 4 Grunt 7 | . 5 2 Sentry 1 | . . 1 Subdweller 1 | . . 1 Best Kill Streak 4 | 3 4 4 Combat Bots Only 4 | . 3 4 Max Kills in Single Turn 2 | 1 2 1 Gunslinging 1 | . 1 . Exploded . | . . . Melee . | . . . Uniques/NPCs Destroyed . | . . . Combat | -11 -10 -10 -------- Run | Yrd Mat Sub Hostile Shots Fired 238 | . 45 193 Missed 86 | . 13 73 Damage Taken 1400 | . 309 1091 Core 253 | . 90 163 Absorbed by Shields . | . . . Regen/Repaired (Parts) 10 | . 10 . Core Remaining (%) 100 | 100 . . Volleys Fired 96 | 16 53 27 Largest 2 | 2 2 2 Hottest 100 | 40 40 100 Shots Fired 192 | 32 106 54 Gun 138 | 32 106 . Cannon 53 | . . 53 Launcher . | . . . Special 1 | . . 1 Kinetic 191 | 32 106 53 Thermal 1 | . . 1 Explosive . | . . . Electromagnetic . | . . . Robot Hit Streak 14 | 4 9 14 Robot Miss Streak 7 | 4 7 2 Penetration Max . | . . . Secondary Targets 2 | . 2 . Max Gunslinging Chain 1 | . 1 . Shots Hit Robots 114 | 14 62 38 Core Hits 48 | 7 30 11 Critical Kills . | . . . Critical Parts Destroyed . | . . . Critical Strikes 3 | . . 3 Blast 3 | . . 3 Melee Attacks . | . . . Impact . | . . . Slashing . | . . . Piercing . | . . . Sneak Attacks . | . . . Combat Hostiles . | . . . Follow-up Attacks . | . . . Damage Inflicted 1417 | 169 730 518 Guns 899 | 169 730 . Cannons 518 | . . 518 Explosions . | . . . Melee . | . . . Ramming . | . . . Kinetic 1417 | 169 730 518 Thermal . | . . . Explosive . | . . . Electromagnetic . | . . . Impact . | . . . Slashing . | . . . Piercing . | . . . Highest Corruption 1 | . 1 1 Average Corruption 1 | . 1 1 Corruption Purged . | . . . Corruption Blocked . | . . . Effects 12 | . 5 7 Message Errors 1 | . . 1 Matter Fused 3 | . 1 2 Heat Flow Errors 4 | . 1 3 Data Loss (major) 2 | . 2 . Misfires 1 | . . 1 Alerts 1 | . 1 . Overload Shots . | . . . Overflow Damage . | . . . Projectiles . | . . . Explosions . | . . . Melee . | . . . Knockbacks 5 | . . 5 Impact . | . . . Kinetic 5 | . . 5 Secondary . | . . . Self-Inflicted Damage . | . . . Shots . | . . . Rammed . | . . . Targets Rammed . | . . . Kicked . | . . . Crushed . | . . . Highest Temperature 242 | . 242 195 Average Temperature 69 | . 63 85 Received Heat Transfer 612 | . 72 540 Siege Activations . | . . . Robots Corrupted . | . . . Combat Hostiles . | . . . Parts Fried . | . . . Impact Corruptions . | . . . Robots Melted . | . . . Combat Hostiles . | . . . Parts Melted . | . . . Heat Transferred . | . . . Parts Sabotaged . | . . . Parts Stolen . | . . . Parts Stripped . | . . . Power Chain Reactions . | . . . Alert | -11 -10 -10 ------- Run | Yrd Mat Sub Peak Influence 297 | 30 297 . Initial 19 | . 19 . Average 119 | 12 138 . Maximum Alert Level 1 | . 1 . Low Security (%) 88 | 100 85 . Level 1 11 | . 14 . Level 2 . | . . . Level 3 . | . . . Level 4 . | . . . Level 5 . | . . . High Security . | . . . Max Security . | . . . Squads Dispatched 3 | . 3 . Investigation 2 | . 2 . Extermination . | . . . Reinforcement 1 | . 1 . Assault . | . . . Garrison . | . . . Intercept . | . . . Searches Triggered . | . . . Construction Impeded . | . . . Haulers Reinforced . | . . . Active Scanning Responses . | . . . Cargo Convoy Interrupts . | . . . Stealth | -11 -10 -10 --------- Run | Yrd Mat Sub Distress Signals 2 | . 2 . Communications Jammed . | . . . Distress Signals . | . . . Times Spotted 80 | . 25 55 Peak Tracking Total 7 | . 4 7 Tactical Retreats 8 | . 1 7 Traps | -11 -10 -10 ------- Run | Yrd Mat Sub Traps Triggered 3 | . 3 . Indirectly . | . . . Trap Hack Attempts . | . . . Triggered . | . . . Disarmed . | . . . Reprogrammed . | . . . Reused . | . . . Traps Extracted . | . . . Installed . | . . . Triggered . | . . . Machines | -11 -10 -10 ---------- Run | Yrd Mat Sub Machines Disabled . | . . . Max in Single Turn . | . . . Machines Repaired . | . . . Machines Dismantled . | . . . Machines Sabotaged . | . . . Overloaded Fab Kills . | . . . Hacking | -11 -10 -10 --------- Run | Yrd Mat Sub Machines Accessed 7 | . 7 . Terminals 5 | . 5 . Fabricators . | . . . Repair Stations 1 | . 1 . Recycling Units 1 | . 1 . Scanalyzers . | . . . Garrison Access . | . . . Total Hacks 20 | . 20 . Successful 9 | . 9 . Failed 10 | . 10 . Catastrophic 2 | . 2 . Database Lockouts 1 | . 1 . Manual 16 | . 16 . Terminals 17 | . 17 . Fabricators . | . . . Repair Stations 2 | . 2 . Recycling Units 1 | . 1 . Scanalyzers . | . . . Garrison Access . | . . . Terminal Hacks 6 | . 6 . Robot Analysis 3 | . 3 . Terminal Index 1 | . 1 . Locate Traps 1 | . 1 . Zone Layout 1 | . 1 . Fabricator Hacks . | . . . Repair Station Hacks 2 | . 2 . Scan Component 1 | . 1 . Repair 1 | . 1 . Recycling Unit Hacks 1 | . 1 . Report Inventory 1 | . 1 . Scanalyzer . | . . . Garrison Access Hacks . | . . . Unauthorized Hacks . | . . . Terminals . | . . . Fabricators . | . . . Repair Stations . | . . . Recycling Units . | . . . Scanalyzers . | . . . Garrison Access . | . . . Data Cores Recovered . | . . . Used . | . . . Hacking Detections 4 | . 4 . Full Trace Events . | . . . Feedback Events . | . . . Feedback Blocked . | . . . Robot Schematics Acquired . | . . . Robots Built . | . . . Authchips . | . . . Time . | . . . Total Robot Build Rating . | . . . Part Schematics Acquired . | . . . Parts Built . | . . . Authchips . | . . . Time . | . . . Total Part Build Rating . | . . . Parts Repaired 1 | . 1 . Time 26 | . 26 . Parts Recycled . | . . . Recycled Matter . | . . . Retrieved Matter . | . . . Retrieved Components . | . . . Parts Scanalyzed . | . . . Part Schematics Acquired . | . . . Parts Damaged . | . . . Bothacking | -11 -10 -10 ------------ Run | Yrd Mat Sub Used RIF Installer . | . . . Robots Hacked . | . . . Non-combat . | . . . Combat . | . . . Robot Hacks Applied . | . . . Relay Couplers Released . | . . . Fabnet Peak Effective % . | . . . Robots Rewired . | . . . Allies Hacked . | . . . Hacks Repelled . | . . . Allies | -11 -10 -10 -------- Run | Yrd Mat Sub Total Allies . | . . . Largest Group . | . . . Highest-Rated Group . | . . . Highest-Rated Ally . | . . . Total Orders . | . . . Ally Attacks . | . . . Total Damage . | . . . Kills . | . . . Allies Corrupted . | . . . Allies Melted . | . . . Intel | -11 -10 -10 ------- Run | Yrd Mat Sub Robot Analysis Total 3 | . 3 . Derelict Logs Recovered . | . . . Drone Launches . | . . . Drone Recoveries . | . . . Exploration | -11 -10 -10 ------------- Run | Yrd Mat Sub Turns Passed 2599 | 217 1233 1149 Spaces Moved 972 | 96 549 327 Core 6 | 6 . . Treads 966 | 90 549 327 Legs . | . . . Wheels . | . . . Hover . | . . . Flight . | . . . Fastest Speed 50 | 50 160 320 Average Speed 226 | 157 181 321 Slowest Speed 480 | 160 320 480 Overloaded Moves . | . . . Propulsion Burnouts . | . . . Robots Hopped . | . . . Cave-ins Triggered . | . . . Exploration Rate (%) 37 | 4 87 22 Regions Visited 2 Branch Regions 1 Pre-discovered Areas . | . . . Known Exits Taken . | . . . Unknown Exits Taken 2 | 1 1 . Scrap Searched . | . . . Spaces Dug . | . . . Terrain Destroyed . | . . . Melee . | . . . Projectile . | . . . AOE . | . . . Terrain Rammed . | . . . Walls Destroyed . | . . . Machines Disabled . | . . . Actions | -11 -10 -10 --------- Run | Yrd Mat Sub Total 1198 | 130 697 371 Wait 49 | . 43 6 Move 970 | 95 548 327 Hop . | . . . Pick Up 36 | 12 20 4 Fast Attach 1 | . 1 . Attach 11 | 7 . 4 Detach . | . . . Swap 16 | . 13 3 Drop 19 | . 19 . Fire 96 | 16 53 27 Melee . | . . . Ram . | . . . Kick . | . . . Crush . | . . . Escape Stasis . | . . . Rewire . | . . . Trap . | . . . Miscellaneous . | . . . Route ------- -11/Scrapyard -10/Materials (discovered 4 exits: [*Mat x2] / [*Min] / [*Sub]) -10/Subcaves (discovered 1 exit: [*Rec]) History --------- Turn | Location | Event 2 | -11/Scrapyard | Met Revision 17 14 | -11/Scrapyard | Discovered new exit (range 15) 218 | -11/Scrapyard | Entered Materials 290 | -10/Materials | Discovered new exit (range 9) 308 | -10/Materials | Build established: Mutant 579 | -10/Materials | Discovered new exit (range 16) 788 | -10/Materials | Repaired Structural Scanner 1005 | -10/Materials | Discovered new exit (range 14) 1062 | -10/Materials | Central database locked down 1400 | -10/Materials | Discovered new exit (range 16) 1451 | -10/Materials | Entered Subcaves 1478 | -10/Subcaves | Ambushed by angry Subdweller bent on revenge 1514 | -10/Subcaves | Core integrity fell below 50% 1559 | -10/Subcaves | A swath of the cavern ceiling suddenly collapsed 2456 | -10/Subcaves | Lost 4 parts (1p1n2w) 2573 | -10/Subcaves | Discovered new exit (range 16) 2593 | -10/Subcaves | Core integrity fell below 20% 2600 | -10/Subcaves | Destroyed by Autobeam Turret with Autobeam Last Messages --------------- repair. 02408_ Flight Unit fries itself beyond repair. 02408_ Subatomizers dissect the Lgt. Assault Rifle. 02415_ S-10 Pest destroyed. 02416_ Lgt. Assault Rifle fries itself beyond repair. 02420_ Acquired 9 matter. 02421_ Flight Unit fries itself beyond repair. 02421_ Subatomizers dissect the Wheel. 02423_ Acquired 15 matter. 02423_ Lgt. Cannon destroyed. 02429_ Acquired 4 matter. 02434_ Subatomizers dissect the Wheel. 02511_ System corrupted: Heat flow error (+235). 02570_ Acquired 37 matter. 02573_ EXIT=FOUND 02586_ Lgt. Treads destroyed. 02586_ Seismic Detector destroyed. 02592_ Lgt. Treads destroyed. Map ----- +----------------------------------------------------+ | ?????????????????????????????????????????????????? | | ?????????????????????????????????????????????????? | | ?????????????????????????????????????????????????? | | ?????????????????????????????????????????????????? | | ?????????????????????????????????????????????????? | | ?????????????????????????????????????????????????? | | ?????????????????????????????????????????????????? | | ???? ????????????????????????????????????????????? | | ??? ???????????????????????????????????????????? | | ??? ??????????????????????????????????????????? | | ???? ??????????????????????????????????????????? | | ???? ??????????????????????????????????????????? | | ????# ??????????????????????????????????????????? | | ???? ??????????????????????????????????????????? | | ????# #?????????????????????????????????????????? | | ??### ?????????????????????????????????????????? | | ?## ???????????????##????????????????????????? | | ?# ? ???????????#####<#####???????????????????? | | ## ? ????##?????#"""" """"????????????????????? | | # ?? ##?## ####?#" " " "????????????????????? | | # ### ### ###" t t ?????????????????????? | | ?# # ### ## ?????????????????????? | | ?# ### ##% ??????????????????????? | | ?# ### ##? ??????????????????????? | | ?# # #??# ###????????????????????? | | ?###?## #??# @ #????????????????????? | | ####??# ## ##??# ###????????????????????? | | ####### #### ##??# % #??????????????????????? | | ##### ##?## #??# ##?????????????????????? | | ### #??# ##??## ##????????????????????? | | #### #??# #????# ##???????????????????? | | ####### #??# ######% ##??????????????????? | | ###### ##??## ## ##% ! #??????????????????? | | ?## ######??# & #####??????????????? | | ?# #?## ##?## # # #??????????????? | | ?### ### #??## ## ###????????????? | | #### #???#### ### #????????????? | | #??????# ### # # #????????????? | | ###????###?## # # ##???????????? | | #?????????#### # #???????????? | | #### #????????????# #???????????? | | ###??## #?????####??## ##???????????? | | ??????## ####???### ##?# ####????????????? | | ???????## #??????# #?# #???????????????? | | ????????# #??????## #?## #???????????????? | | ????????## ??????## #### #???????????????? | | ?????????# ??????## #???????????????? | | ????????## #??????## ##???????????????? | | # ????????#######???????## ####????????????????? | | ??#??????????????????????#####???????????????????? | +----------------------------------------------------+ Best States ------------- Heat Dissipation 25 Energy Generation 10 Energy Capacity 250 Matter Stores 300 Matter Capacity 300 Sight Range 16 Terrain Scan Range 16 Terrain Scan Density 10 Evasion (%) 40 Recoil Reduction 2 Item Schematics ----------------- None Robot Schematics ------------------ None Fabricated ------------ Nothing Alien Tech Used ----------------- None Achievements -------------- None Challenges ------------ None Game ------ Seed BehemothDeuteriumInterrupter Manual? 0 Play Time 00:16:46 Cumulative 31.2 hours Start 2024.04.30 @ 00:33:12 End 2024.04.30 @ 01:16:22 Sessions 1 Manual Loads 0 Difficulty Rogue Special Mode None Game No. 40 Rogue 35 Adventurer 5 Explorer 0 Win Type - Total 0 Types 0/0/0/0/0/0/0/0/0 Lore% 25 Gallery% 27 Achievement% 23 Wizard Run 0 Options --------- Layout 2 ASCII 0 Keyboard 0 Movement Mouse Keybinds 0 Fullscreen 2 Font 24/Smallcaps Map View 50x44 Zoom Use 0% Tactical HUD 1 Map Filters NONE Filters NONE Steam 1 RUN: 216f93d9-0eba-45ca-93f9-01f536125bbe